fUST/lending_fUST_20250208
["ID","MTS","AMOUNT","RATE_DAILY","PERIOD"]
[352243433,1739014248752,-500.0,0.00011506,2]
[352243434,1739014248763,-710.16,0.00011506,2]
[352243435,1739014248775,-500.0,0.00011506,2]
[352243436,1739014248786,-500.0,0.00011506,2]
[352243437,1739014248797,-1264.3,0.00011506,2]
[352243438,1739014248808,-500.0,0.00011506,2]
[352243439,1739014248823,-491.717401,0.00011506,2]
[352243440,1739014248834,-151.0,0.00011506,2]
[352243441,1739014248845,-491.717401,0.00011506,2]
[352243442,1739014248855,-264.359526,0.00011506,2]
[352243443,1739014248868,-151.0,0.00011506,2]
[352243444,1739014248879,-264.359526,0.00011506,2]
[352243445,1739014248892,-500.0,0.00011506,2]
[352243446,1739014248902,-500.0,0.00011506,2]
[352243447,1739014248913,-500.0,0.00011506,2]
[352243448,1739014248923,-320.518371,0.00011506,2]
[352243449,1739014248933,-500.0,0.00011506,2]
[352243450,1739014248944,-1091.56,0.00011506,2]
[352243451,1739014248954,-153.197476,0.00011506,2]
[352243452,1739014248965,-151.0,0.00011506,2]
[352243453,1739014248975,-500.0,0.00011506,2]
[352243454,1739014248985,-153.197476,0.00011506,2]
[352243455,1739014248995,-1462.36,0.00011506,2]
[352243456,1739014249005,-500.0,0.00011506,2]
[352243457,1739014249015,-500.0,0.00011506,2]
[352243458,1739014249025,-214.294755,0.00011506,2]
[352243459,1739014249036,-500.0,0.00011506,2]
[352243460,1739014249046,-151.0,0.00011506,2]
[352243461,1739014249057,-500.0,0.00011506,2]
[352243462,1739014249066,-153.847106,0.00011506,2]
[352243463,1739014249077,-801.57,0.00011506,2]
[352243464,1739014249087,-151.0,0.00011506,2]
[352243465,1739014249097,-795.93,0.00011506,2]
[352243466,1739014249108,-500.0,0.00011506,2]
[352243467,1739014249118,-4049.86,0.00011506,2]
[352243468,1739014249128,-500.0,0.00011506,2]
[352243469,1739014249138,-500.0,0.00011506,2]
[352243470,1739014249147,-1249.67,0.00011506,2]
[352243471,1739014249158,-500.0,0.00011506,2]
[352243472,1739014249168,-1812.77,0.00011506,2]
[352243473,1739014249178,-500.0,0.00011506,2]
[352243474,1739014249189,-500.0,0.00011506,2]
[352243475,1739014249199,-644.854219,0.00011506,2]
[352243476,1739014249210,-500.0,0.00011506,2]
[352243477,1739014249220,-500.0,0.00011506,2]
[352243478,1739014249232,-514.99,0.00011506,2]
[352243479,1739014249242,-644.854219,0.00011506,2]
[352243480,1739014249252,-500.0,0.00011506,2]
[352243481,1739014249262,-1477.59,0.00011506,2]
[352243482,1739014249272,-500.0,0.00011506,2]
[352243483,1739014249282,-163.705868,0.00011506,2]
[352243484,1739014249294,-163.705868,0.00011506,2]
[352243485,1739014249304,-500.0,0.00011506,2]
[352243486,1739014249315,-4159.53,0.00011506,2]
[352243487,1739014249326,-500.0,0.00011506,2]
[352243488,1739014249336,-500.0,0.00011506,2]
[352243489,1739014249347,-1685.04,0.00011506,2]
[352243490,1739014249356,-500.0,0.00011506,2]
[352243491,1739014249367,-5561.26,0.00011506,2]
[352243492,1739014249377,-1228.03,0.00011506,2]
[352243493,1739014249387,-2115.37,0.00011506,2]
[352243494,1739014249396,-500.0,0.00011506,2]
[352243495,1739014249406,-16725.12,0.00011506,2]
[352243496,1739014249416,-500.0,0.00011506,2]
[352243497,1739014249426,-1445.5,0.00011506,2]
[352243498,1739014249436,-500.0,0.00011506,2]
[352243499,1739014249446,-983.36,0.00011506,2]
[352243500,1739014249456,-245.011434,0.00011506,2]
[352243501,1739014249466,-500.0,0.00011506,2]
[352243502,1739014249476,-47197.88,0.00011506,2]
[352243503,1739014249487,-534.55,0.00011506,2]
[352243504,1739014249497,-1969.37,0.00011506,2]
[352243505,1739014249507,-151.0,0.00011506,2]
[352243506,1739014249518,-245.011434,0.00011506,2]
[352243507,1739014249528,-500.0,0.00011506,2]
[352243508,1739014249673,-579.46,0.00011506,2]
[352243509,1739014249685,-1474.87,0.00011506,2]
[352243510,1739014249697,-803.136992,0.00011506,2]
[352243511,1739014249708,-500.0,0.00011506,2]
[352243512,1739014249717,-2098.99,0.00011506,2]
[352243513,1739014249727,-803.136992,0.00011506,2]
[352243514,1739014249737,-500.0,0.00011506,2]
[352243515,1739014249747,-500.0,0.00011506,2]
[352243516,1739014249758,-500.0,0.00011506,2]
[352243517,1739014249768,-1998.66,0.00011506,2]
[352243518,1739014249778,-557.71,0.00011506,2]
[352243519,1739014249789,-1227.56,0.00011506,2]
[352243520,1739014249799,-500.0,0.00011506,2]
[352243521,1739014249808,-672.32,0.00011506,2]
[352243522,1739014249821,-151.0,0.00011506,2]
[352243523,1739014249831,-500.0,0.00011506,2]
[352243524,1739014249841,-500.0,0.00011506,2]
[352243525,1739014249851,-500.0,0.00011506,2]
[352243526,1739014249862,-151.0,0.00011506,2]
[352243527,1739014249871,-292.242362,0.00011506,2]
[352243528,1739014249882,-500.0,0.00011506,2]
[352243529,1739014249892,-1479.92,0.00011506,2]
[352243530,1739014249904,-292.242362,0.00011506,2]
[352243531,1739014249916,-500.0,0.00011506,2]
[352243532,1739014249926,-500.0,0.00011506,2]
[352243533,1739014249937,-500.0,0.00011506,2]
[352243534,1739014249947,-287.157116,0.00011506,2]
[352243535,1739014249957,-210.1845,0.00011506,2]
[352243536,1739014249967,-500.0,0.00011506,2]
[352243537,1739014249977,-151.0,0.00011506,2]
[352243538,1739014249987,-500.0,0.00011506,2]
[352243539,1739014249997,-500.0,0.00011506,2]
[352243540,1739014250007,-287.157116,0.00011506,2]
[352243541,1739014250017,-227.60640928,0.00011506,2]
[352243542,1739014250028,-638.99,0.00011506,2]
[352243543,1739014250037,-4209.68,0.00011506,2]
[352243544,1739014250047,-3487.73,0.00011506,2]
[352243545,1739014250057,-4164.04,0.00011506,2]
[352243546,1739014250066,-856.23,0.00011506,2]
[352243547,1739014250077,-500.0,0.00011506,2]
[352243548,1739014250086,-893.61,0.00011506,2]
[352243549,1739014250095,-151.0,0.00011506,2]
[352243550,1739014250105,-151.0,0.00011506,2]
[352243551,1739014250115,-500.0,0.00011506,2]
[352243552,1739014250124,-308.02804,0.00011506,2]
[352243553,1739014250134,-1749.15,0.00011506,2]
[352243554,1739014250144,-151.0,0.00011506,2]
[352243555,1739014250153,-1747.62,0.00011506,2]
[352243556,1739014250163,-9145.14,0.00011506,2]
[352243557,1739014250172,-308.02804,0.00011506,2]
[352243558,1739014250182,-935.88,0.00011506,2]
[352243559,1739014250191,-500.0,0.00011506,2]
[352243560,1739014250201,-1603.73,0.00011506,2]
[352243561,1739014250210,-500.0,0.00011506,2]
[352243562,1739014250220,-664.04,0.00011506,2]
[352243563,1739014250229,-1378.16,0.00011506,2]
[352243564,1739014250239,-574.102202,0.00011506,2]
[352243565,1739014250248,-574.102202,0.00011506,2]
[352243566,1739014250258,-500.0,0.00011506,2]
[352243567,1739014250268,-500.0,0.00011506,2]
[352243568,1739014250278,-500.0,0.00011506,2]
[352243569,1739014250287,-651.17,0.00011506,2]
[352243570,1739014250297,-4646.5,0.00011506,2]
[352243571,1739014250307,-500.0,0.00011506,2]
[352243572,1739014250316,-500.0,0.00011506,2]
[352243573,1739014250327,-16242.73,0.00011506,2]
[352243574,1739014250337,-500.0,0.00011506,2]
[352243575,1739014250346,-546.78,0.00011506,2]
[352243576,1739014250355,-462.27252829,0.00011506,2]
[352243577,1739014250364,-1100.89,0.00011506,2]
[352243578,1739014250375,-500.0,0.00011506,2]
[352243579,1739014250384,-1713.87,0.00011506,2]
[352243580,1739014250394,-500.0,0.00011506,2]
[352243581,1739014250404,-3040.25,0.00011506,2]
[352243582,1739014250414,-151.0,0.000116,2]
[352243583,1739014250423,-531.153,0.000116,2]
[352243584,1739014250434,-20000.000001,0.00011614,2]
[352243585,1739014250444,-90215.58363726,0.00011642,5]
[352243586,1739014250453,-197562.2534781,0.00011643,5]
[352243587,1739014250678,-3579.72747579,0.00011643,5]
[352243588,1739014250690,-535.77476444,0.00011643,5]
[352243589,1739014250701,-2652.46156252,0.00011643,5]
[352243590,1739014251242,-1278.05,0.00011095,2]
[352243591,1739014251252,-1221.95,0.00011232,2]
[352243592,1739014251607,-500.0,0.00010958,2]
[352243593,1739014251619,-500.0,0.00010958,2]
[352243594,1739014251628,-393.8,0.00010959,2]
[352243595,1739014251638,-500.0,0.00011095,2]
[352243596,1739014251648,-56.1,0.00011232,2]
[352243597,1739014251658,-500.0,0.00011232,2]
[352243598,1739014251668,-1278.05,0.00011369,2]
[352243599,1739014251678,-1178.91377783,0.00011386,2]
[352243600,1739014251740,-500.0,0.00010958,2]
[352243601,1739014251750,-791.49292525,0.00011386,2]
[352243602,1739014251767,-3006.48354365,0.00011386,2]
[352243645,1739015432616,-361.1009711,0.00010064,2]
[352243647,1739015432627,-534.94615758,0.00010603,2]
[352243649,1739015432636,-185.94,0.00010739,2]
[352243651,1739015432645,-3117.56603137,0.00010857,2]
[352243653,1739015432655,-300.0,0.00010957,2]
[352243655,1739015432664,-500.0,0.00010958,2]
[352243657,1739015432674,-500.0,0.00010958,2]
[352243659,1739015432683,-361.03936297,0.00010958,2]
[352244196,1739015438455,-500.0,0.00010958,2]
[352244197,1739015438465,-500.0,0.00010958,2]
[352244198,1739015438474,-500.0,0.00010958,2]
[352244199,1739015438484,-500.0,0.00010958,2]
[352244200,1739015438493,-500.0,0.00010958,2]
[352244201,1739015438503,-500.0,0.00010958,2]
[352244202,1739015438513,-505.41348552,0.00010958,2]
[352244203,1739015438522,-500.0,0.00010958,2]
[352244204,1739015438532,-502.26367311,0.00010958,2]
[352244205,1739015438541,-276.8169302,0.00010958,2]
[352244206,1739015438551,-500.0,0.00010958,2]
[352244207,1739015438561,-500.0,0.00010958,2]
[352244208,1739015438570,-500.0,0.00010958,2]
[352244209,1739015438579,-500.0,0.00010958,2]
[352244210,1739015438589,-500.0,0.00010958,2]
[352244211,1739015438599,-500.0,0.00010958,2]
[352244212,1739015438608,-276.00400845,0.00010958,2]
[352244213,1739015438621,-223.99599155,0.00010958,2]
[352244214,1739015438630,-500.0,0.00010958,2]
[352244215,1739015438640,-404.03019968,0.00010958,2]
[352244216,1739015438649,-500.0,0.00010958,2]
[352244217,1739015438658,-500.0,0.00010958,2]
[352244218,1739015438667,-500.0,0.00010958,2]
[352244219,1739015438677,-500.0,0.00010958,2]
[352244220,1739015438686,-500.0,0.00010958,2]
[352244221,1739015438695,-500.0,0.00010958,2]
[352244222,1739015438705,-500.0,0.00010958,2]
[352244223,1739015438714,-500.0,0.00010958,2]
[352244224,1739015438723,-368.67574739,0.00010958,2]
[352244225,1739015438733,-500.0,0.00010958,2]
[352244226,1739015438742,-500.0,0.00010958,2]
[352244227,1739015438752,-500.0,0.00010958,2]
[352244228,1739015438762,-500.0,0.00010958,2]
[352244229,1739015438771,-1211.62,0.00010958,2]
[352244230,1739015438780,-500.0,0.00010958,2]
[352244231,1739015438789,-500.0,0.00010958,2]
[352244232,1739015438799,-500.0,0.00010958,2]
[352244233,1739015438808,-500.0,0.00010958,2]
[352244234,1739015438817,-500.0,0.00010958,2]
[352244235,1739015438827,-500.0,0.00010958,2]
[352244236,1739015438836,-500.0,0.00010958,2]
[352244237,1739015438846,-500.0,0.00010958,2]
[352244238,1739015438856,-500.0,0.00010958,2]
[352244239,1739015438866,-500.0,0.00010958,2]
[352244240,1739015438876,-986.72,0.00010958,2]
[352244241,1739015438886,-500.0,0.00010958,2]
[352244242,1739015438895,-500.0,0.00010958,2]
[352244243,1739015438905,-500.0,0.00010958,2]
[352244244,1739015438915,-529.44,0.00010958,2]
[352244245,1739015438924,-500.0,0.00010958,2]
[352244246,1739015438934,-430.38540521,0.00010958,2]
[352244247,1739015438943,-500.0,0.00010958,2]
[352244248,1739015438953,-500.0,0.00010958,2]
[352244249,1739015438963,-778.11,0.00010958,2]
[352244250,1739015438972,-500.0,0.00010958,2]
[352244251,1739015438985,-500.0,0.00010958,2]
[352244252,1739015438999,-500.0,0.00010958,2]
[352244253,1739015439012,-500.0,0.00010958,2]
[352244254,1739015439026,-500.0,0.00010958,2]
[352244255,1739015439040,-500.0,0.00010958,2]
[352244256,1739015439050,-500.0,0.00010958,2]
[352244257,1739015439062,-500.0,0.00010958,2]
[352244258,1739015439075,-500.0,0.00010958,2]
[352244259,1739015439087,-500.0,0.00010958,2]
[352244260,1739015439099,-500.0,0.00010958,2]
[352244261,1739015439111,-690.74,0.00010958,2]
[352244262,1739015439125,-744.14,0.00010958,2]
[352244263,1739015439136,-500.0,0.00010958,2]
[352244264,1739015439148,-500.0,0.00010958,2]
[352244265,1739015439160,-1314.39,0.00010958,2]
[352244266,1739015439173,-564.26,0.00010958,2]
[352244267,1739015439185,-500.0,0.00010958,2]
[352244268,1739015439196,-500.0,0.00010958,2]
[352244269,1739015439210,-547.96657509,0.00010958,2]
[352244270,1739015439222,-1339.02,0.00010958,2]
[352244271,1739015439236,-500.0,0.00010958,2]
[352244272,1739015439249,-534.55,0.00010958,2]
[352244273,1739015439261,-500.0,0.00010958,2]
[352244274,1739015439272,-457.10840547,0.00010958,2]
[352244275,1739015439284,-500.0,0.00010958,2]
[352244276,1739015439294,-500.0,0.00010958,2]
[352244277,1739015439306,-475.45449773,0.00010958,2]
[352244278,1739015439318,-500.0,0.00010958,2]
[352244279,1739015439331,-1002.09,0.00010958,2]
[352244280,1739015439347,-500.0,0.00010958,2]
[352244281,1739015439359,-500.0,0.00010958,2]
[352244282,1739015439370,-500.0,0.00010958,2]
[352244283,1739015439383,-500.0,0.00010958,2]
[352244284,1739015439396,-500.0,0.00010958,2]
[352244285,1739015439408,-500.0,0.00010958,2]
[352244286,1739015439421,-272.9783568,0.00010958,2]
[352244287,1739015439434,-500.0,0.00010958,2]
[352244288,1739015439447,-500.0,0.00010958,2]
[352244289,1739015439458,-500.0,0.00010958,2]
[352244290,1739015439468,-680.57,0.00010958,2]
[352244291,1739015439480,-1460.45,0.00010958,2]
[352244292,1739015439491,-500.0,0.00010958,2]
[352244293,1739015439505,-321.09939492,0.00010958,2]
[352244294,1739015439519,-1397.62,0.00010958,2]
[352244295,1739015439532,-229.5921136,0.00010958,2]
[352244296,1739015439543,-500.0,0.00010958,2]
[352244297,1739015439553,-500.0,0.00010958,2]
[352244298,1739015439564,-500.0,0.00010958,2]
[352244299,1739015439577,-915.98,0.00010958,2]
[352244300,1739015439589,-500.0,0.00010958,2]
[352244301,1739015439601,-546.78,0.00010958,2]
[352244302,1739015439612,-500.0,0.00010958,2]
[352244303,1739015439623,-500.0,0.00010958,2]
[352244304,1739015439634,-500.0,0.00010958,2]
[352244305,1739015439646,-500.0,0.00010958,2]
[352244306,1739015439658,-742.35,0.00010958,2]
[352244307,1739015439669,-500.0,0.00010958,2]
[352244308,1739015439680,-1046.08,0.00010958,2]
[352244309,1739015439694,-500.0,0.00010958,2]
[352244310,1739015439705,-500.0,0.00010958,2]
[352244311,1739015439718,-768.17,0.00010958,2]
[352244312,1739015439729,-500.0,0.00010958,2]
[352244313,1739015439740,-500.0,0.00010958,2]
[352244314,1739015439752,-500.0,0.00010958,2]
[352244315,1739015439764,-500.0,0.00010958,2]
[352244316,1739015439776,-762.77,0.00010958,2]
[352244317,1739015439788,-500.0,0.00010958,2]
[352244319,1739015439799,-500.0,0.00010958,2]
[352244321,1739015439811,-500.0,0.00010958,2]
[352244323,1739015439823,-500.0,0.00010958,2]
[352244325,1739015439835,-500.0,0.00010958,2]
[352244328,1739015439847,-500.0,0.00010958,2]
[352244330,1739015439859,-500.0,0.00010958,2]
[352244332,1739015439871,-1943.92,0.00010958,2]
[352244334,1739015439882,-714.99,0.00010958,2]
[352244336,1739015439893,-500.0,0.00010958,2]
[352244338,1739015439904,-500.0,0.00010958,2]
[352244341,1739015439915,-500.0,0.00010958,2]
[352244343,1739015439927,-1542.05,0.00010958,2]
[352244345,1739015439939,-500.0,0.00010958,2]
[352244347,1739015439950,-500.0,0.00010958,2]
[352244349,1739015439961,-487.24118303,0.00010958,2]
[352244351,1739015439972,-500.0,0.00010958,2]
[352244354,1739015439984,-3040.25,0.00010958,2]
[352244356,1739015439995,-500.0,0.00010958,2]
[352244358,1739015440006,-500.0,0.00010958,2]
[352244360,1739015440017,-500.0,0.00010958,2]
[352244362,1739015440028,-3881.11,0.00010958,2]
[352244364,1739015440040,-3284.92,0.00010958,2]
[352244367,1739015440050,-500.0,0.00010958,2]
[352244368,1739015440061,-1737.23,0.00010958,2]
[352244369,1739015440073,-500.0,0.00010958,2]
[352244370,1739015440084,-1197.6,0.00010958,2]
[352244371,1739015440095,-500.0,0.00010958,2]
[352244374,1739015440106,-500.0,0.00010958,2]
[352244376,1739015440117,-354.83054355,0.00010958,2]
[352244378,1739015440128,-1118.29,0.00010958,2]
[352244381,1739015440140,-500.0,0.00010958,2]
[352244383,1739015440156,-500.0,0.00010958,2]
[352244384,1739015440168,-500.0,0.00010958,2]
[352244385,1739015440179,-500.0,0.00010958,2]
[352244386,1739015440191,-500.0,0.00010958,2]
[352244387,1739015440203,-500.0,0.00010958,2]
[352244388,1739015440215,-1401.43,0.00010958,2]
[352244389,1739015440226,-232.57135564,0.00010958,2]
[352244390,1739015440242,-271.38286363,0.00010958,2]
[352244391,1739015440254,-983.36,0.00010958,2]
[352244392,1739015440267,-500.0,0.00010958,2]
[352244393,1739015440279,-500.0,0.00010958,2]
[352244394,1739015440290,-500.0,0.00010958,2]
[352244395,1739015440302,-500.0,0.00010958,2]
[352244396,1739015440315,-500.0,0.00010958,2]
[352244397,1739015440327,-500.0,0.00010958,2]
[352244398,1739015440338,-500.0,0.00010958,2]
[352244399,1739015440348,-500.0,0.00010958,2]
[352244400,1739015440360,-500.0,0.00010958,2]
[352244401,1739015440371,-500.0,0.00010958,2]
[352244402,1739015440382,-1685.04,0.00010958,2]
[352244403,1739015440392,-1477.59,0.00010958,2]
[352244404,1739015440404,-506.92400394,0.00010958,2]
[352244405,1739015440416,-201.77620619,0.00010958,2]
[352244406,1739015440427,-500.0,0.00010958,2]
[352244409,1739015440438,-500.0,0.00010958,2]
[352244411,1739015440449,-500.0,0.00010958,2]
[352244413,1739015440460,-4159.53,0.00010958,2]
[352244415,1739015440471,-500.0,0.00010958,2]
[352244417,1739015440483,-1228.03,0.00010958,2]
[352244418,1739015440494,-500.0,0.00010958,2]
[352244419,1739015440506,-500.0,0.00010958,2]
[352244420,1739015440517,-500.0,0.00010958,2]
[352244421,1739015440528,-500.0,0.00010958,2]
[352244422,1739015440540,-500.0,0.00010958,2]
[352244423,1739015440551,-500.0,0.00010958,2]
[352244425,1739015440562,-500.0,0.00010958,2]
[352244427,1739015440574,-500.0,0.00010958,2]
[352244429,1739015440585,-500.0,0.00010958,2]
[352244431,1739015440596,-500.0,0.00010958,2]
[352244433,1739015440606,-500.0,0.00010958,2]
[352244435,1739015440617,-500.0,0.00010958,2]
[352244436,1739015440628,-500.0,0.00010958,2]
[352244437,1739015440639,-5561.26,0.00010958,2]
[352244438,1739015440651,-2115.37,0.00010958,2]
[352244439,1739015440662,-500.0,0.00010958,2]
[352244440,1739015440673,-500.0,0.00010958,2]
[352244441,1739015440684,-47197.88,0.00010958,2]
[352244442,1739015440695,-1445.5,0.00010958,2]
[352244443,1739015440707,-500.0,0.00010958,2]
[352244444,1739015440718,-500.0,0.00010958,2]
[352244446,1739015440729,-16725.12,0.00010958,2]
[352244448,1739015440739,-500.0,0.00010958,2]
[352244449,1739015440751,-500.0,0.00010958,2]
[352244450,1739015440762,-579.46,0.00010958,2]
[352244451,1739015440772,-500.0,0.00010958,2]
[352244452,1739015440782,-2098.99,0.00010958,2]
[352244453,1739015440804,-500.0,0.00010958,2]
[352244454,1739015440814,-500.0,0.00010958,2]
[352244455,1739015440825,-1969.37,0.00010958,2]
[352244456,1739015441109,-1227.56,0.00010958,2]
[352244457,1739015441123,-500.0,0.00010958,2]
[352244458,1739015441139,-500.0,0.00010958,2]
[352244459,1739015441152,-500.0,0.00010958,2]
[352244460,1739015441161,-983.24,0.00010958,2]
[352244461,1739015441171,-500.0,0.00010958,2]
[352244462,1739015441181,-557.71,0.00010958,2]
[352244463,1739015441196,-672.32,0.00010958,2]
[352244464,1739015441207,-500.0,0.00010958,2]
[352244465,1739015441219,-500.0,0.00010958,2]
[352244466,1739015441229,-500.0,0.00010958,2]
[352244467,1739015441242,-500.0,0.00010958,2]
[352244468,1739015441252,-1998.66,0.00010958,2]
[352244469,1739015441261,-2219.88,0.00010958,2]
[352244470,1739015441271,-893.61,0.00010958,2]
[352244471,1739015441281,-500.0,0.00010958,2]
[352244472,1739015441291,-500.0,0.00010958,2]
[352244473,1739015441301,-500.0,0.00010958,2]
[352244474,1739015441312,-500.0,0.00010958,2]
[352244475,1739015441321,-500.0,0.00010958,2]
[352244476,1739015441330,-500.0,0.00010958,2]
[352244477,1739015441340,-500.0,0.00010958,2]
[352244478,1739015441349,-674.87,0.00010958,2]
[352244479,1739015441359,-500.0,0.00010958,2]
[352244480,1739015441368,-500.0,0.00010958,2]
[352244481,1739015441377,-500.0,0.00010958,2]
[352244482,1739015441387,-4172.34,0.00010958,2]
[352244483,1739015441396,-500.0,0.00010958,2]
[352244484,1739015441407,-3630.22,0.00010958,2]
[352244485,1739015441416,-4209.68,0.00010958,2]
[352244486,1739015441426,-500.0,0.00010958,2]
[352244487,1739015441436,-9440.31,0.00010958,2]
[352244488,1739015441446,-500.0,0.00010958,2]
[352244489,1739015441456,-856.23,0.00010958,2]
[352244490,1739015441466,-1603.73,0.00010958,2]
[352244491,1739015441475,-1747.62,0.00010958,2]
[352244492,1739015441485,-1749.15,0.00010958,2]
[352244493,1739015441494,-500.0,0.00010958,2]
[352244494,1739015441503,-935.88,0.00010958,2]
[352244495,1739015441513,-500.0,0.00010958,2]
[352244496,1739015441522,-500.0,0.00010958,2]
[352244497,1739015441531,-500.0,0.00010958,2]
[352244498,1739015441541,-1378.16,0.00010958,2]
[352244499,1739015441553,-500.0,0.00010958,2]
[352244500,1739015441563,-500.0,0.00010958,2]
[352244501,1739015441573,-4646.5,0.00010958,2]
[352244502,1739015441583,-500.81767706,0.00010958,2]
[352244503,1739015441592,-526.53405721,0.00010958,2]
[352244504,1739015441602,-664.04,0.00010958,2]
[352244505,1739015441612,-500.0,0.00010958,2]
[352244506,1739015441621,-536.54576892,0.00010958,2]
[352244507,1739015441631,-651.17,0.00010958,2]
[352244508,1739015441641,-500.0,0.00010958,2]
[352244509,1739015441651,-500.0,0.00010958,2]
[352244510,1739015441660,-631.75,0.00010958,2]
[352244511,1739015441669,-500.0,0.00010958,2]
[352244512,1739015441678,-474.45704257,0.00010958,2]
[352244513,1739015441688,-500.0,0.00010958,2]
[352244514,1739015441698,-500.0,0.00010958,2]
[352244515,1739015441707,-1100.89,0.00010958,2]
[352244516,1739015441716,-500.0,0.00010958,2]
[352244517,1739015441725,-16242.73,0.00010958,2]
[352244518,1739015441735,-500.0,0.00010958,2]
[352244519,1739015441744,-614.86,0.00010959,2]
[352244520,1739015441754,-512.39,0.00010959,2]
[352244521,1739015441764,-426.99,0.00010959,2]
[352244522,1739015441773,-355.82,0.00010959,2]
[352244523,1739015441783,-296.52,0.00010959,2]
[352244524,1739015441801,-247.1,0.00010959,2]
[352244525,1739015441811,-4000.0,0.00011,2]
[352244526,1739015441820,-199.22654583,0.00011094,2]
[352244527,1739015441828,-391.75813264,0.00011094,2]
[352244528,1739015441839,-500.0,0.00011094,2]
[352244529,1739015441849,-500.0,0.00011094,2]
[352244530,1739015441859,-500.0,0.00011094,2]
[352244531,1739015441869,-346.6,0.00011094,2]
[352244532,1739015441879,-500.0,0.00011095,2]
[352244533,1739015441889,-500.0,0.00011095,2]
[352244534,1739015441899,-518.1928402,0.00011095,2]
[352244535,1739015441908,-500.0,0.00011095,2]
[352244536,1739015441917,-500.0,0.00011095,2]
[352244537,1739015441927,-500.0,0.00011095,2]
[352244538,1739015441937,-500.0,0.00011095,2]
[352244539,1739015441946,-500.0,0.00011095,2]
[352244540,1739015441956,-500.0,0.00011095,2]
[352244541,1739015441965,-500.0,0.00011095,2]
[352244542,1739015441976,-500.0,0.00011095,2]
[352244543,1739015441986,-500.0,0.00011095,2]
[352244544,1739015441995,-500.0,0.00011095,2]
[352244545,1739015442005,-500.0,0.00011095,2]
[352244546,1739015442014,-500.0,0.00011095,2]
[352244547,1739015442025,-638.39880981,0.00011095,2]
[352244548,1739015442035,-500.0,0.00011095,2]
[352244549,1739015442044,-500.0,0.00011095,2]
[352244550,1739015442054,-500.0,0.00011095,2]
[352244551,1739015442063,-596.08398438,0.00011095,2]
[352244552,1739015442072,-500.0,0.00011095,2]
[352244553,1739015442081,-1211.62,0.00011095,2]
[352244554,1739015442091,-500.0,0.00011095,2]
[352244555,1739015442101,-500.0,0.00011095,2]
[352244556,1739015442114,-500.0,0.00011095,2]
[352244557,1739015442124,-500.0,0.00011095,2]
[352244558,1739015442134,-399.22245439,0.00011095,2]
[352244559,1739015442145,-500.0,0.00011095,2]
[352244560,1739015442154,-499.55,0.00011095,2]
[352244561,1739015442164,-500.0,0.00011095,2]
[352244562,1739015442174,-500.0,0.00011095,2]
[352244563,1739015442185,-986.72,0.00011095,2]
[352244564,1739015442195,-500.0,0.00011095,2]
[352244565,1739015442204,-500.0,0.00011095,2]